[Event "Titled Tuesday Blitz February 14 Early 2023"]
[White "Rakhmanov, Aleksandr"]
[Black "Vovk, Orest"]
[WhiteFideId "4173708"]
[BlackFideId "14113490"]
[WhiteElo "2632"]
[BlackElo "2315"]
[Result "1-0"]
[Round "06"]
[TimeControl "180+2"]
[Date "2023.02.15"]
[WhiteClock "0:00:13"]
[BlackClock "0:00:02"]

1. c4 {[%clk 0:03:00]}  g5 {[%clk 0:02:57]} 2. Nc3 {[%clk 0:03:00]}  h6 {[%clk 0:02:55]} 3. g3 {[%clk 0:03:00]}  Bg7 {[%clk 0:02:53]} 4. Bg2 {[%clk 0:03:01]}  c5 {[%clk 0:02:46]} 5. d3 {[%clk 0:03:00]}  Nc6 {[%clk 0:02:41]} 6. e3 {[%clk 0:03:00]}  d6 {[%clk 0:02:35]} 7. Nge2 {[%clk 0:03:00]}  Nf6 {[%clk 0:02:34]} 8. b3 {[%clk 0:03:00]}  h5 {[%clk 0:02:27]} 9. h4 {[%clk 0:02:58]}  gxh4 {[%clk 0:02:25]} 10. Rxh4 {[%clk 0:02:59]}  Bg4 {[%clk 0:02:23]} 11. Bb2 {[%clk 0:02:59]}  Ne5 {[%clk 0:02:19]} 12. Bxb7 {[%clk 0:02:37]}  Nf3+ {[%clk 0:02:13]} 13. Bxf3 {[%clk 0:02:35]}  Bxf3 {[%clk 0:02:13]} 14. Qd2 {[%clk 0:02:30]}  Ng4 {[%clk 0:02:04]} 15. Nf4 {[%clk 0:02:04]}  Ne5 {[%clk 0:01:55]} 16. d4 {[%clk 0:02:02]}  cxd4 {[%clk 0:01:47]} 17. exd4 {[%clk 0:01:57]}  Nc6 {[%clk 0:01:33]} 18. d5 {[%clk 0:01:38]}  Ne5 {[%clk 0:01:22]} 19. Nce2 {[%clk 0:01:35]}  Bg4 {[%clk 0:01:10]} 20. Nd4 {[%clk 0:01:29]}  Bf6 {[%clk 0:01:01]} 21. Rh2 {[%clk 0:01:20]}  Qb6 {[%clk 0:00:54]} 22. Kf1 {[%clk 0:00:36]}  Qxd4 {[%clk 0:00:42]} 23. Qxd4 {[%clk 0:00:23]}  Nf3 {[%clk 0:00:42]} 24. Qxf6 {[%clk 0:00:21]}  Nxh2+ {[%clk 0:00:36]} 25. Kg2 {[%clk 0:00:21]}  exf6 {[%clk 0:00:37]} 26. Bxf6 {[%clk 0:00:11]}  O-O {[%clk 0:00:19]} 27. Kxh2 {[%clk 0:00:09]}  Bf3 {[%clk 0:00:06]} 28. g4 {[%clk 0:00:09]}  Rfe8 {[%clk 0:00:03]} 29. gxh5 {[%clk 0:00:08]}  Kh7 {[%clk 0:00:03]} 30. Kg3 {[%clk 0:00:08]}  Be4 {[%clk 0:00:03]} 31. f3 {[%clk 0:00:09]}  Rg8+ {[%clk 0:00:03]} 32. Kf2 {[%clk 0:00:09]}  Bf5 {[%clk 0:00:03]} 33. Re1 {[%clk 0:00:09]}  Rae8 {[%clk 0:00:03]} 34. Re7 {[%clk 0:00:09]}  Rxe7 {[%clk 0:00:02]} 35. Bxe7 {[%clk 0:00:10]}  a5 {[%clk 0:00:02]} 36. Bxd6 {[%clk 0:00:10]}  a4 {[%clk 0:00:03]} 37. bxa4 {[%clk 0:00:09]}  Ra8 {[%clk 0:00:03]} 38. a3 {[%clk 0:00:10]}  Rxa4 {[%clk 0:00:03]} 39. Bb4 {[%clk 0:00:10]}  Bc8 {[%clk 0:00:01]} 40. c5 {[%clk 0:00:11]}  Ba6 {[%clk 0:00:02]} 41. c6 {[%clk 0:00:11]}  Bc4 {[%clk 0:00:02]} 42. Ke3 {[%clk 0:00:11]}  Ra8 {[%clk 0:00:02]} 43. Kd4 {[%clk 0:00:12]}  Bb5 {[%clk 0:00:02]} 44. Kc5 {[%clk 0:00:12]}  Ba6 {[%clk 0:00:02]} 45. d6 {[%clk 0:00:12]}  Rg8 {[%clk 0:00:02]} 46. d7 {[%clk 0:00:13]} 1-0


[Site "https://www.chess.com"]

[Event "Titled Tuesday Blitz February 14 Early 2023"]
[White "Pantsulaia, Levan"]
[Black "Principe, Gerson"]
[WhiteFideId "13602071"]
[BlackFideId "3804550"]
[WhiteElo "2570"]
[BlackElo "2226"]
[Result "1-0"]
[Round "06"]
[TimeControl "180+2"]
[Date "2023.02.15"]
[WhiteClock "0:00:12"]
[BlackClock "0:00:01"]

1. Nf3 {[%clk 0:03:00]}  Nf6 {[%clk 0:02:58]} 2. g3 {[%clk 0:02:59]}  b6 {[%clk 0:02:56]} 3. Bg2 {[%clk 0:02:58]}  Bb7 {[%clk 0:02:56]} 4. O-O {[%clk 0:02:58]}  e6 {[%clk 0:02:57]} 5. d3 {[%clk 0:02:57]}  d5 {[%clk 0:02:57]} 6. Nbd2 {[%clk 0:02:55]}  Be7 {[%clk 0:02:57]} 7. e4 {[%clk 0:02:55]}  O-O {[%clk 0:02:48]} 8. e5 {[%clk 0:02:50]}  Nfd7 {[%clk 0:02:46]} 9. Re1 {[%clk 0:02:50]}  c5 {[%clk 0:02:47]} 10. h4 {[%clk 0:02:47]}  Nc6 {[%clk 0:02:45]} 11. Nf1 {[%clk 0:02:47]}  b5 {[%clk 0:02:45]} 12. h5 {[%clk 0:02:44]}  b4 {[%clk 0:02:43]} 13. h6 {[%clk 0:02:43]}  g6 {[%clk 0:02:43]} 14. N1h2 {[%clk 0:02:43]}  a5 {[%clk 0:02:43]} 15. Ng4 {[%clk 0:02:43]}  a4 {[%clk 0:02:42]} 16. Bf4 {[%clk 0:02:41]}  Nd4 {[%clk 0:02:36]} 17. Nxd4 {[%clk 0:02:20]}  cxd4 {[%clk 0:02:37]} 18. Qd2 {[%clk 0:02:20]}  g5 {[%clk 0:02:00]} 19. Bxg5 {[%clk 0:02:01]}  Bxg5 {[%clk 0:01:58]} 20. Qxb4 {[%clk 0:02:02]}  Bc6 {[%clk 0:01:50]} 21. Qxd4 {[%clk 0:02:01]}  Qb6 {[%clk 0:01:45]} 22. Qc3 {[%clk 0:01:16]}  Qc5 {[%clk 0:01:42]} 23. Qxc5 {[%clk 0:01:09]}  Nxc5 {[%clk 0:01:43]} 24. b4 {[%clk 0:01:09]}  axb3 {[%clk 0:01:32]} 25. axb3 {[%clk 0:01:10]}  Bd2 {[%clk 0:01:24]} 26. Red1 {[%clk 0:01:00]}  Bc3 {[%clk 0:01:23]} 27. Nf6+ {[%clk 0:01:00]}  Kh8 {[%clk 0:01:23]} 28. Rxa8 {[%clk 0:00:58]}  Rxa8 {[%clk 0:01:22]} 29. d4 {[%clk 0:00:58]}  Nd7 {[%clk 0:01:17]} 30. Rd3 {[%clk 0:00:58]}  Bb4 {[%clk 0:01:04]} 31. Ng4 {[%clk 0:00:51]}  Ra1+ {[%clk 0:01:02]} 32. Kh2 {[%clk 0:00:51]}  Bb5 {[%clk 0:00:51]} 33. Rf3 {[%clk 0:00:43]}  Kg8 {[%clk 0:00:51]} 34. Ne3 {[%clk 0:00:43]}  Bd2 {[%clk 0:00:44]} 35. Rf4 {[%clk 0:00:32]}  Bxe3 {[%clk 0:00:34]} 36. fxe3 {[%clk 0:00:30]}  Nf8 {[%clk 0:00:32]} 37. e4 {[%clk 0:00:29]}  Bc6 {[%clk 0:00:24]} 38. exd5 {[%clk 0:00:28]}  Bxd5 {[%clk 0:00:24]} 39. c4 {[%clk 0:00:26]}  Bxg2 {[%clk 0:00:20]} 40. Kxg2 {[%clk 0:00:27]}  Rb1 {[%clk 0:00:19]} 41. Rf3 {[%clk 0:00:27]}  Nd7 {[%clk 0:00:14]} 42. Kf2 {[%clk 0:00:24]}  Rb2+ {[%clk 0:00:08]} 43. Ke1 {[%clk 0:00:23]}  Nb8 {[%clk 0:00:08]} 44. d5 {[%clk 0:00:19]}  exd5 {[%clk 0:00:09]} 45. cxd5 {[%clk 0:00:20]}  Nd7 {[%clk 0:00:09]} 46. e6 {[%clk 0:00:19]}  fxe6 {[%clk 0:00:10]} 47. dxe6 {[%clk 0:00:20]}  Ne5 {[%clk 0:00:05]} 48. Re3 {[%clk 0:00:17]}  Ng6 {[%clk 0:00:03]} 49. Kd1 {[%clk 0:00:13]}  Kf8 {[%clk 0:00:01]} 50. Rf3+ {[%clk 0:00:12]} 1-0


[Site "https://www.chess.com"]

[Event "Titled Tuesday Blitz February 14 Early 2023"]
[White "Melian, Juan Sebastian"]
[Black "Pichot, Alan"]
[WhiteFideId "3706575"]
[BlackFideId "110973"]
[WhiteElo "2293"]
[BlackElo "2638"]
[Result "1-0"]
[Round "06"]
[TimeControl "180+2"]
[Date "2023.02.15"]
[WhiteClock "0:00:07"]
[BlackClock "0:00:20"]

1. d4 {[%clk 0:03:00]}  g6 {[%clk 0:03:00]} 2. c4 {[%clk 0:03:00]}  d6 {[%clk 0:03:00]} 3. Nc3 {[%clk 0:03:01]}  Nd7 {[%clk 0:03:00]} 4. e4 {[%clk 0:03:00]}  e5 {[%clk 0:03:00]} 5. Nge2 {[%clk 0:03:00]}  Bg7 {[%clk 0:02:58]} 6. Be3 {[%clk 0:02:51]}  Ngf6 {[%clk 0:02:57]} 7. f3 {[%clk 0:02:51]}  O-O {[%clk 0:02:56]} 8. Qd2 {[%clk 0:02:50]}  exd4 {[%clk 0:02:54]} 9. Nxd4 {[%clk 0:02:51]}  Re8 {[%clk 0:02:53]} 10. Be2 {[%clk 0:02:52]}  a5 {[%clk 0:02:50]} 11. O-O {[%clk 0:02:52]}  Nc5 {[%clk 0:02:51]} 12. Rfe1 {[%clk 0:02:34]}  h5 {[%clk 0:02:49]} 13. Rad1 {[%clk 0:02:34]}  Bd7 {[%clk 0:02:49]} 14. Ndb5 {[%clk 0:02:31]}  b6 {[%clk 0:02:39]} 15. b3 {[%clk 0:02:11]}  Be6 {[%clk 0:02:38]} 16. Bg5 {[%clk 0:02:08]}  Qc8 {[%clk 0:02:35]} 17. Nd5 {[%clk 0:02:03]}  Bxd5 {[%clk 0:02:34]} 18. cxd5 {[%clk 0:02:02]}  Nh7 {[%clk 0:02:31]} 19. Be3 {[%clk 0:02:00]}  Qd7 {[%clk 0:02:31]} 20. Nd4 {[%clk 0:01:53]}  Be5 {[%clk 0:02:04]} 21. Bb5 {[%clk 0:01:53]}  Qe7 {[%clk 0:01:55]} 22. Bxe8 {[%clk 0:01:51]}  Qxe8 {[%clk 0:01:56]} 23. Nc6 {[%clk 0:01:50]}  Bg7 {[%clk 0:01:55]} 24. Bd4 {[%clk 0:01:49]}  Bf8 {[%clk 0:01:53]} 25. e5 {[%clk 0:01:49]}  dxe5 {[%clk 0:01:52]} 26. Bxe5 {[%clk 0:01:18]}  Qd7 {[%clk 0:01:51]} 27. Qf4 {[%clk 0:01:15]}  Re8 {[%clk 0:01:46]} 28. Bc3 {[%clk 0:00:59]}  Rxe1+ {[%clk 0:01:40]} 29. Bxe1 {[%clk 0:01:00]}  Bd6 {[%clk 0:01:41]} 30. Qd4 {[%clk 0:00:57]}  Qf5 {[%clk 0:01:33]} 31. Bc3 {[%clk 0:00:53]}  f6 {[%clk 0:01:33]} 32. Kh1 {[%clk 0:00:38]}  Kg7 {[%clk 0:01:31]} 33. Re1 {[%clk 0:00:38]}  Ng5 {[%clk 0:01:31]} 34. Ne7 {[%clk 0:00:29]}  Qf4 {[%clk 0:01:30]} 35. Qxf4 {[%clk 0:00:18]}  Bxf4 {[%clk 0:01:31]} 36. Nc6 {[%clk 0:00:16]}  Bd6 {[%clk 0:01:32]} 37. Rd1 {[%clk 0:00:14]}  Nf7 {[%clk 0:01:25]} 38. Nd4 {[%clk 0:00:14]}  Ne5 {[%clk 0:01:21]} 39. Ne6+ {[%clk 0:00:12]}  Nxe6 {[%clk 0:01:15]} 40. dxe6 {[%clk 0:00:13]}  Kf8 {[%clk 0:01:16]} 41. f4 {[%clk 0:00:12]}  Ng4 {[%clk 0:01:16]} 42. Rf1 {[%clk 0:00:08]}  Ke7 {[%clk 0:01:16]} 43. f5 {[%clk 0:00:05]}  g5 {[%clk 0:01:11]} 44. h3 {[%clk 0:00:04]}  Ne3 {[%clk 0:01:11]} 45. Rf3 {[%clk 0:00:04]}  Nd5 {[%clk 0:01:12]} 46. Bd2 {[%clk 0:00:05]}  Be5 {[%clk 0:01:08]} 47. Kg1 {[%clk 0:00:05]}  c5 {[%clk 0:01:00]} 48. Kf1 {[%clk 0:00:05]}  Bd4 {[%clk 0:00:58]} 49. a4 {[%clk 0:00:05]}  Nc7 {[%clk 0:00:56]} 50. Ke2 {[%clk 0:00:05]}  Ne8 {[%clk 0:00:53]} 51. Kd3 {[%clk 0:00:04]}  Nd6 {[%clk 0:00:53]} 52. g3 {[%clk 0:00:02]}  Be5 {[%clk 0:00:52]} 53. g4 {[%clk 0:00:01]}  h4 {[%clk 0:00:50]} 54. Rf1 {[%clk 0:00:02]}  Bd4 {[%clk 0:00:46]} 55. Be3 {[%clk 0:00:02]}  Be5 {[%clk 0:00:46]} 56. Rc1 {[%clk 0:00:02]}  Bb2 {[%clk 0:00:44]} 57. Re1 {[%clk 0:00:02]}  Ke8 {[%clk 0:00:42]} 58. Bd2 {[%clk 0:00:02]}  Ke7 {[%clk 0:00:37]} 59. Bc3 {[%clk 0:00:02]}  Ba3 {[%clk 0:00:38]} 60. Re2 {[%clk 0:00:03]}  Bc1 {[%clk 0:00:34]} 61. Rc2 {[%clk 0:00:03]}  Bf4 {[%clk 0:00:34]} 62. Re2 {[%clk 0:00:04]}  Bc1 {[%clk 0:00:34]} 63. Bd2 {[%clk 0:00:05]}  Ba3 {[%clk 0:00:33]} 64. Kc2 {[%clk 0:00:05]}  c4 {[%clk 0:00:32]} 65. bxc4 {[%clk 0:00:05]}  Bc5 {[%clk 0:00:28]} 66. Kd3 {[%clk 0:00:05]}  Nb7 {[%clk 0:00:27]} 67. Be3 {[%clk 0:00:05]}  Bxe3 {[%clk 0:00:24]} 68. Kxe3 {[%clk 0:00:06]}  Nc5 {[%clk 0:00:25]} 69. Kd4 {[%clk 0:00:05]}  Nxa4 {[%clk 0:00:25]} 70. Ra2 {[%clk 0:00:06]}  Nc5 {[%clk 0:00:25]} 71. Rb2 {[%clk 0:00:06]}  Na4 {[%clk 0:00:24]} 72. Rb5 {[%clk 0:00:06]}  Kd6 {[%clk 0:00:25]} 73. Rd5+ {[%clk 0:00:05]}  Ke7 {[%clk 0:00:25]} 74. Rd7+ {[%clk 0:00:06]}  Ke8 {[%clk 0:00:26]} 75. Kd5 {[%clk 0:00:05]}  Nc5 {[%clk 0:00:26]} 76. Ra7 {[%clk 0:00:05]}  a4 {[%clk 0:00:26]} 77. Kd6 {[%clk 0:00:05]}  Ne4+ {[%clk 0:00:26]} 78. Kc6 {[%clk 0:00:06]}  Nf2 {[%clk 0:00:22]} 79. Kxb6 {[%clk 0:00:03]}  Nxh3 {[%clk 0:00:23]} 80. Kc6 {[%clk 0:00:03]}  Nf2 {[%clk 0:00:23]} 81. Kd6 {[%clk 0:00:02]}  Ne4+ {[%clk 0:00:23]} 82. Kd5 {[%clk 0:00:03]}  Nc3+ {[%clk 0:00:22]} 83. Kc6 {[%clk 0:00:03]}  h3 {[%clk 0:00:21]} 84. Rh7 {[%clk 0:00:03]}  a3 {[%clk 0:00:21]} 85. Rxh3 {[%clk 0:00:01]}  a2 {[%clk 0:00:21]} 86. Rh1 {[%clk 0:00:02]}  Nb1 {[%clk 0:00:22]} 87. Kd6 {[%clk 0:00:03]}  Kf8 {[%clk 0:00:18]} 88. e7+ {[%clk 0:00:03]}  Kf7 {[%clk 0:00:18]} 89. Rh7+ {[%clk 0:00:03]}  Kg8 {[%clk 0:00:17]} 90. e8=Q+ {[%clk 0:00:04]}  Kxh7 {[%clk 0:00:18]} 91. Qg6+ {[%clk 0:00:04]}  Kh8 {[%clk 0:00:19]} 92. Qxf6+ {[%clk 0:00:05]}  Kg8 {[%clk 0:00:19]} 93. Qg6+ {[%clk 0:00:06]}  Kh8 {[%clk 0:00:19]} 94. Qf6+ {[%clk 0:00:06]}  Kg8 {[%clk 0:00:20]} 95. Qa1 {[%clk 0:00:07]} 1-0


[Site "https://www.chess.com"]

[Event "Titled Tuesday Blitz February 14 Early 2023"]
[White "Rustemov, Alexander"]
[Black "Kaidanov, Gregory"]
[WhiteFideId "4119002"]
[BlackFideId "2008564"]
[WhiteElo "2525"]
[BlackElo "2559"]
[Result "1-0"]
[Round "06"]
[TimeControl "180+2"]
[Date "2023.02.15"]
[WhiteClock "0:00:21"]
[BlackClock "0:00:14"]

1. d4 {[%clk 0:02:56]}  d5 {[%clk 0:03:00]} 2. c4 {[%clk 0:02:53]}  e6 {[%clk 0:03:00]} 3. Nc3 {[%clk 0:02:53]}  c6 {[%clk 0:03:00]} 4. e3 {[%clk 0:02:53]}  Nf6 {[%clk 0:03:00]} 5. Nf3 {[%clk 0:02:53]}  Nbd7 {[%clk 0:03:00]} 6. Qc2 {[%clk 0:02:52]}  Be7 {[%clk 0:02:59]} 7. Bd3 {[%clk 0:02:49]}  b6 {[%clk 0:02:57]} 8. O-O {[%clk 0:02:49]}  Bb7 {[%clk 0:02:57]} 9. Rd1 {[%clk 0:02:46]}  Rc8 {[%clk 0:02:55]} 10. e4 {[%clk 0:02:42]}  dxe4 {[%clk 0:02:52]} 11. Nxe4 {[%clk 0:02:43]}  c5 {[%clk 0:02:52]} 12. dxc5 {[%clk 0:02:32]}  bxc5 {[%clk 0:02:46]} 13. Bf4 {[%clk 0:02:28]}  Qb6 {[%clk 0:02:37]} 14. Ne5 {[%clk 0:02:15]}  Nxe5 {[%clk 0:02:30]} 15. Bxe5 {[%clk 0:02:15]}  Nxe4 {[%clk 0:02:24]} 16. Bxe4 {[%clk 0:02:16]}  Bxe4 {[%clk 0:02:21]} 17. Qxe4 {[%clk 0:02:17]}  O-O {[%clk 0:02:10]} 18. Rd7 {[%clk 0:02:11]}  Rfe8 {[%clk 0:02:09]} 19. Rad1 {[%clk 0:02:09]}  f6 {[%clk 0:01:41]} 20. Bc3 {[%clk 0:02:05]}  Bf8 {[%clk 0:01:38]} 21. Bxf6 {[%clk 0:01:58]}  Qc6 {[%clk 0:01:28]} 22. Qg4 {[%clk 0:01:51]}  Rc7 {[%clk 0:01:13]} 23. Rxc7 {[%clk 0:01:31]}  Qxc7 {[%clk 0:01:13]} 24. Bc3 {[%clk 0:01:29]}  Qf7 {[%clk 0:01:09]} 25. Qe4 {[%clk 0:01:20]}  h6 {[%clk 0:00:57]} 26. g3 {[%clk 0:01:20]}  Qc7 {[%clk 0:00:49]} 27. Kg2 {[%clk 0:01:19]}  Qf7 {[%clk 0:00:45]} 28. Rd3 {[%clk 0:01:18]}  Re7 {[%clk 0:00:44]} 29. Rf3 {[%clk 0:01:14]}  Qe8 {[%clk 0:00:44]} 30. Re3 {[%clk 0:01:04]}  Qd7 {[%clk 0:00:43]} 31. b3 {[%clk 0:01:02]}  Re8 {[%clk 0:00:43]} 32. Rd3 {[%clk 0:01:00]}  Qf7 {[%clk 0:00:43]} 33. Qc6 {[%clk 0:00:58]}  Re7 {[%clk 0:00:38]} 34. Rd8 {[%clk 0:00:57]}  Rc7 {[%clk 0:00:33]} 35. Qf3 {[%clk 0:00:56]}  Qxf3+ {[%clk 0:00:32]} 36. Kxf3 {[%clk 0:00:57]}  Kf7 {[%clk 0:00:32]} 37. Be5 {[%clk 0:00:51]}  Rb7 {[%clk 0:00:31]} 38. Rc8 {[%clk 0:00:50]}  Be7 {[%clk 0:00:29]} 39. Rc7 {[%clk 0:00:44]}  Rxc7 {[%clk 0:00:29]} 40. Bxc7 {[%clk 0:00:44]}  h5 {[%clk 0:00:27]} 41. h3 {[%clk 0:00:43]}  g6 {[%clk 0:00:27]} 42. Ke4 {[%clk 0:00:43]}  Ke8 {[%clk 0:00:25]} 43. Be5 {[%clk 0:00:34]}  Kd7 {[%clk 0:00:25]} 44. Bc3 {[%clk 0:00:34]}  Bd6 {[%clk 0:00:25]} 45. Be5 {[%clk 0:00:31]}  Be7 {[%clk 0:00:25]} 46. f3 {[%clk 0:00:31]}  Bd8 {[%clk 0:00:25]} 47. g4 {[%clk 0:00:32]}  Be7 {[%clk 0:00:21]} 48. Kf4 {[%clk 0:00:31]}  Bd8 {[%clk 0:00:20]} 49. Bg7 {[%clk 0:00:30]}  Be7 {[%clk 0:00:18]} 50. Ke5 {[%clk 0:00:30]}  Bd8 {[%clk 0:00:17]} 51. Bf8 {[%clk 0:00:29]}  Bh4 {[%clk 0:00:16]} 52. Bxc5 {[%clk 0:00:27]}  Bg3+ {[%clk 0:00:14]} 53. Ke4 {[%clk 0:00:27]}  hxg4 {[%clk 0:00:12]} 54. fxg4 {[%clk 0:00:26]}  Bh4 {[%clk 0:00:13]} 55. b4 {[%clk 0:00:25]}  Bf6 {[%clk 0:00:13]} 56. Bxa7 {[%clk 0:00:23]}  Kc6 {[%clk 0:00:13]} 57. b5+ {[%clk 0:00:22]}  Kb7 {[%clk 0:00:13]} 58. Bd4 {[%clk 0:00:22]}  Be7 {[%clk 0:00:14]} 59. c5 {[%clk 0:00:21]} 1-0


[Site "https://www.chess.com"]

[Event "Titled Tuesday Blitz February 14 Early 2023"]
[White "Sovetov, Oleksandr"]
[Black "Pakleza, Zbigniew"]
[WhiteFideId "34105786"]
[BlackFideId "1119290"]
[WhiteElo "1976"]
[BlackElo "2494"]
[Result "0-1"]
[Round "06"]
[TimeControl "180+2"]
[Date "2023.02.15"]
[WhiteClock "0:00:04"]
[BlackClock "0:00:03"]

1. Nf3 {[%clk 0:02:58]}  d5 {[%clk 0:03:00]} 2. e3 {[%clk 0:02:58]}  Nf6 {[%clk 0:02:59]} 3. c4 {[%clk 0:02:58]}  c6 {[%clk 0:03:00]} 4. Nc3 {[%clk 0:02:57]}  Bg4 {[%clk 0:03:00]} 5. cxd5 {[%clk 0:02:55]}  Bxf3 {[%clk 0:02:59]} 6. gxf3 {[%clk 0:02:44]}  cxd5 {[%clk 0:03:00]} 7. Qb3 {[%clk 0:02:45]}  Qd7 {[%clk 0:02:59]} 8. d4 {[%clk 0:02:41]}  Nc6 {[%clk 0:02:57]} 9. Bd2 {[%clk 0:02:42]}  e6 {[%clk 0:02:56]} 10. Rc1 {[%clk 0:02:41]}  Bd6 {[%clk 0:02:56]} 11. a3 {[%clk 0:02:39]}  O-O {[%clk 0:02:55]} 12. f4 {[%clk 0:02:37]}  g6 {[%clk 0:02:54]} 13. Bd3 {[%clk 0:02:32]}  Rfc8 {[%clk 0:02:53]} 14. Ke2 {[%clk 0:02:25]}  Be7 {[%clk 0:02:30]} 15. Na4 {[%clk 0:02:20]}  Rc7 {[%clk 0:02:15]} 16. Rc2 {[%clk 0:02:07]}  Ne4 {[%clk 0:01:37]} 17. Be1 {[%clk 0:02:02]}  Nd6 {[%clk 0:01:28]} 18. Nc5 {[%clk 0:01:57]}  Qc8 {[%clk 0:01:22]} 19. Bd2 {[%clk 0:01:52]}  Nf5 {[%clk 0:01:12]} 20. Bxf5 {[%clk 0:01:43]}  gxf5 {[%clk 0:01:13]} 21. Rhc1 {[%clk 0:01:36]}  Bxc5 {[%clk 0:01:02]} 22. dxc5 {[%clk 0:01:29]}  f6 {[%clk 0:00:58]} 23. Qd3 {[%clk 0:01:13]}  Qe8 {[%clk 0:00:48]} 24. Rg1+ {[%clk 0:01:13]}  Kf8 {[%clk 0:00:46]} 25. Ke1 {[%clk 0:00:52]}  Qh5 {[%clk 0:00:45]} 26. Qf1 {[%clk 0:00:50]}  Rg7 {[%clk 0:00:38]} 27. Rxg7 {[%clk 0:00:48]}  Kxg7 {[%clk 0:00:39]} 28. h3 {[%clk 0:00:29]}  Kf7 {[%clk 0:00:36]} 29. b4 {[%clk 0:00:28]}  d4 {[%clk 0:00:21]} 30. b5 {[%clk 0:00:25]}  dxe3 {[%clk 0:00:22]} 31. Bxe3 {[%clk 0:00:19]}  Ne7 {[%clk 0:00:23]} 32. c6 {[%clk 0:00:15]}  bxc6 {[%clk 0:00:24]} 33. bxc6 {[%clk 0:00:16]}  Rc8 {[%clk 0:00:22]} 34. c7 {[%clk 0:00:16]}  Qf3 {[%clk 0:00:17]} 35. Qb5 {[%clk 0:00:15]}  Qxh3 {[%clk 0:00:11]} 36. Qd7 {[%clk 0:00:13]}  Qh1+ {[%clk 0:00:09]} 37. Ke2 {[%clk 0:00:13]}  Qb7 {[%clk 0:00:06]} 38. Bc5 {[%clk 0:00:11]}  Rxc7 {[%clk 0:00:05]} 39. Qd6 {[%clk 0:00:04]}  Rd7 {[%clk 0:00:03]} 0-1


[Site "https://www.chess.com"]

[Event "Titled Tuesday Blitz February 14 Early 2023"]
[White "Parpiev, Isaak"]
[Black "Kukhmazov, Arsen"]
[WhiteFideId "34281576"]
[BlackFideId "24108260"]
[WhiteElo "2167"]
[BlackElo "2512"]
[Result "0-1"]
[Round "06"]
[TimeControl "180+2"]
[Date "2023.02.15"]
[WhiteClock "0:00:02"]
[BlackClock "0:00:10"]

1. d4 {[%clk 0:02:52]}  d5 {[%clk 0:03:00]} 2. c4 {[%clk 0:02:51]}  c6 {[%clk 0:03:00]} 3. Nc3 {[%clk 0:02:52]}  Nf6 {[%clk 0:03:01]} 4. Nf3 {[%clk 0:02:52]}  dxc4 {[%clk 0:02:55]} 5. a4 {[%clk 0:02:51]}  Bf5 {[%clk 0:02:55]} 6. Ne5 {[%clk 0:02:49]}  Nbd7 {[%clk 0:02:54]} 7. Nxc4 {[%clk 0:02:49]}  Qc7 {[%clk 0:02:54]} 8. g3 {[%clk 0:02:49]}  e5 {[%clk 0:02:54]} 9. dxe5 {[%clk 0:02:49]}  Nxe5 {[%clk 0:02:55]} 10. Bf4 {[%clk 0:02:50]}  Nfd7 {[%clk 0:02:56]} 11. Ne3 {[%clk 0:02:49]}  Be6 {[%clk 0:02:55]} 12. Bg2 {[%clk 0:02:43]}  Bb4 {[%clk 0:02:49]} 13. O-O {[%clk 0:02:42]}  O-O {[%clk 0:02:49]} 14. Qc2 {[%clk 0:02:40]}  Rac8 {[%clk 0:02:42]} 15. Rac1 {[%clk 0:02:39]}  Qa5 {[%clk 0:02:36]} 16. Ne4 {[%clk 0:02:24]}  f6 {[%clk 0:02:29]} 17. Rfd1 {[%clk 0:02:03]}  Rcd8 {[%clk 0:02:28]} 18. h4 {[%clk 0:01:52]}  h6 {[%clk 0:01:51]} 19. Nc3 {[%clk 0:01:33]}  Bf7 {[%clk 0:01:41]} 20. Be4 {[%clk 0:01:30]}  Nc5 {[%clk 0:01:34]} 21. Bh7+ {[%clk 0:01:23]}  Kh8 {[%clk 0:01:34]} 22. Bxe5 {[%clk 0:01:24]}  fxe5 {[%clk 0:01:33]} 23. Bg6 {[%clk 0:01:04]}  Bb3 {[%clk 0:01:32]} 24. Rxd8 {[%clk 0:00:57]}  Qxd8 {[%clk 0:01:33]} 25. Qb1 {[%clk 0:00:56]}  Qf6 {[%clk 0:01:33]} 26. Ng4 {[%clk 0:00:42]}  Qe6 {[%clk 0:01:30]} 27. Ne3 {[%clk 0:00:34]}  Nxa4 {[%clk 0:01:19]} 28. Nxa4 {[%clk 0:00:33]}  Bxa4 {[%clk 0:01:20]} 29. h5 {[%clk 0:00:31]}  Bb5 {[%clk 0:01:19]} 30. Qc2 {[%clk 0:00:29]}  a5 {[%clk 0:01:16]} 31. Kg2 {[%clk 0:00:28]}  c5 {[%clk 0:01:15]} 32. f3 {[%clk 0:00:26]}  Bc6 {[%clk 0:01:15]} 33. Kh2 {[%clk 0:00:24]}  a4 {[%clk 0:01:15]} 34. g4 {[%clk 0:00:22]}  b5 {[%clk 0:01:13]} 35. Nf5 {[%clk 0:00:21]}  e4 {[%clk 0:01:07]} 36. f4 {[%clk 0:00:20]}  e3 {[%clk 0:01:07]} 37. Kg3 {[%clk 0:00:20]}  Bd2 {[%clk 0:01:07]} 38. Rd1 {[%clk 0:00:18]}  c4 {[%clk 0:01:06]} 39. Rxd2 {[%clk 0:00:17]}  exd2 {[%clk 0:01:06]} 40. Qxd2 {[%clk 0:00:18]}  Qe4 {[%clk 0:01:00]} 41. Nh4 {[%clk 0:00:09]}  Qh1 {[%clk 0:01:00]} 42. Qd4 {[%clk 0:00:04]}  Qe1+ {[%clk 0:00:51]} 43. Kh3 {[%clk 0:00:02]}  Qxe2 {[%clk 0:00:51]} 44. Bf5 {[%clk 0:00:02]}  Qf1+ {[%clk 0:00:36]} 45. Kg3 {[%clk 0:00:02]}  Qe1+ {[%clk 0:00:25]} 46. Kh3 {[%clk 0:00:02]}  Be8 {[%clk 0:00:21]} 47. Be4 {[%clk 0:00:01]}  Qf1+ {[%clk 0:00:17]} 48. Kg3 {[%clk 0:00:01]}  Qxf4+ {[%clk 0:00:17]} 49. Kh3 {[%clk 0:00:02]}  Qf6 {[%clk 0:00:11]} 50. Qe3 {[%clk 0:00:02]}  Qxb2 {[%clk 0:00:10]} 0-1


[Site "https://www.chess.com"]

[Event "Titled Tuesday Blitz February 14 Early 2023"]
[White "Novikov, Evgenij"]
[Black "Costachi, Mihnea"]
[WhiteFideId "4125380"]
[BlackFideId "1217518"]
[WhiteElo "2276"]
[BlackElo "2476"]
[Result "0-1"]
[Round "06"]
[TimeControl "180+2"]
[Date "2023.02.15"]
[WhiteClock "0:00:01"]
[BlackClock "0:01:33"]

1. d4 {[%clk 0:02:58]}  d5 {[%clk 0:02:58]} 2. c4 {[%clk 0:02:58]}  dxc4 {[%clk 0:02:58]} 3. e3 {[%clk 0:02:58]}  Nf6 {[%clk 0:02:58]} 4. Bxc4 {[%clk 0:02:58]}  c5 {[%clk 0:02:53]} 5. Nf3 {[%clk 0:02:57]}  cxd4 {[%clk 0:02:53]} 6. O-O {[%clk 0:02:52]}  Nc6 {[%clk 0:02:53]} 7. exd4 {[%clk 0:02:51]}  e6 {[%clk 0:02:52]} 8. Nc3 {[%clk 0:02:48]}  Be7 {[%clk 0:02:53]} 9. a3 {[%clk 0:02:38]}  O-O {[%clk 0:02:53]} 10. Re1 {[%clk 0:02:37]}  a6 {[%clk 0:02:53]} 11. Be3 {[%clk 0:02:27]}  b5 {[%clk 0:02:53]} 12. Ba2 {[%clk 0:02:25]}  Bb7 {[%clk 0:02:54]} 13. Rc1 {[%clk 0:02:17]}  Rc8 {[%clk 0:02:50]} 14. Qd3 {[%clk 0:02:05]}  Na5 {[%clk 0:02:43]} 15. Ne5 {[%clk 0:02:02]}  Nd5 {[%clk 0:02:36]} 16. Bb1 {[%clk 0:01:58]}  g6 {[%clk 0:02:34]} 17. Bh6 {[%clk 0:01:54]}  Re8 {[%clk 0:02:34]} 18. Qh3 {[%clk 0:01:51]}  Nb3 {[%clk 0:02:21]} 19. Nxf7 {[%clk 0:01:41]}  Qb6 {[%clk 0:02:18]} 20. Rxe6 {[%clk 0:00:42]}  Qxd4 {[%clk 0:02:16]} 21. Rce1 {[%clk 0:00:18]}  Kxf7 {[%clk 0:02:13]} 22. Rxg6 {[%clk 0:00:08]}  Bf6 {[%clk 0:01:53]} 23. Rf1 {[%clk 0:00:05]}  hxg6 {[%clk 0:01:50]} 24. Bc1 {[%clk 0:00:02]}  Nxc1 {[%clk 0:01:31]} 25. Qh7+ {[%clk 0:00:01]}  Bg7 {[%clk 0:01:32]} 26. Qxg6+ {[%clk 0:00:01]}  Kf8 {[%clk 0:01:33]} 0-1


[Site "https://www.chess.com"]